bitfinex/quotes_BTCUSD_20240827
["timestamp","ask_amount","ask_price","bid_price","bid_amount"]
[1724794641867,1.80108272,61251.0,61250.0,0.70964]
[1724794642091,1.64388747,61251.0,61250.0,0.71130314]
[1724794642350,1.35369249,61251.0,61250.0,0.70964]
[1724794642588,1.35369249,61251.0,61250.0,0.71144532]
[1724794642809,1.36769249,61251.0,61250.0,0.71144532]
[1724794643036,1.55326004,61251.0,61250.0,0.71144532]
[1724794643479,1.70752204,61251.0,61250.0,0.71144532]
[1724794644686,1.70752204,61251.0,61250.0,0.71226632]
[1724794644905,2.33324202,61251.0,61250.0,0.71226632]
[1724794645142,2.00671702,61251.0,61250.0,0.71226632]
[1724794645353,2.31924202,61251.0,61250.0,0.71226632]
[1724794645618,2.33324202,61251.0,61250.0,0.71226632]
[1724794646089,2.31924202,61251.0,61250.0,0.71226632]
[1724794646344,0.401,61242.0,61241.0,0.00821]
[1724794646555,1.3038586,61242.0,61241.0,0.00821]
[1724794649515,0.5583586,61242.0,61241.0,0.00821]
[1724794649963,0.57696397,61242.0,61241.0,0.00821]
[1724794650178,0.52696397,61242.0,61241.0,0.00821]
[1724794650393,0.58566037,61242.0,61241.0,0.00821]
[1724794650605,0.58296397,61242.0,61241.0,0.00821]
[1724794651279,0.93296397,61242.0,61241.0,0.00821]
[1724794652166,0.92696397,61242.0,61241.0,0.00821]
[1724794652605,0.93896397,61242.0,61241.0,0.00821]
[1724794652828,1.07468037,61242.0,61241.0,0.00821]
[1724794653060,0.051,61234.0,61225.0,0.1927]
[1724794653286,0.07267547,61234.0,61225.0,0.35603]
[1724794653512,0.55249177,61234.0,61233.0,0.00205015]
[1724794653737,0.55249177,61234.0,61233.0,0.00028233]
[1724794653942,0.57809805,61234.0,61233.0,0.00028233]
[1724794655313,0.52809805,61234.0,61233.0,0.00028233]
[1724794655997,0.53209805,61234.0,61233.0,0.00205091]
[1724794656213,0.53209805,61234.0,61233.0,0.00110433]
[1724794656424,0.53209805,61234.0,61233.0,0.00287291]
[1724794656635,0.53209805,61234.0,61233.0,0.00110433]
[1724794656860,0.52809805,61234.0,61233.0,0.00110433]
[1724794657074,0.52809805,61234.0,61233.0,0.00287291]
[1724794657295,0.52809805,61234.0,61233.0,0.00110433]
[1724794657503,0.52809805,61234.0,61233.0,0.00287291]
[1724794657718,0.52809805,61234.0,61233.0,0.00110433]
[1724794657927,0.52809805,61234.0,61233.0,0.00287291]
[1724794658133,0.52809805,61234.0,61233.0,0.00110433]
[1724794658356,0.52809805,61234.0,61233.0,0.00287291]
[1724794659924,0.52809805,61234.0,61230.0,0.05004]
[1724794660386,0.50322516,61231.0,61230.0,0.05004]
[1724794660610,0.50730839,61231.0,61230.0,0.05004]
[1724794663030,0.50830839,61231.0,61230.0,0.05004]
[1724794663724,0.53391405,61231.0,61230.0,0.05004]
[1724794663936,0.52983082,61231.0,61230.0,0.05004]
[1724794667362,0.52983082,61231.0,61220.0,0.10004]
[1724794667363,0.219369,61211.0,61206.0,0.01923136]
[1724794667586,1.74042196,61211.0,61206.0,0.01923136]
[1724794667837,2.8650316,61211.0,61210.0,0.0137773]
[1724794668094,1.47637,61209.0,61206.0,0.01923136]
[1724794668329,0.4,61191.0,61180.0,4e-05]
[1724794668580,2.0794283,61191.0,61180.0,4e-05]
[1724794668802,1.7525833,61191.0,61180.0,4e-05]
[1724794669033,0.051,61178.0,61177.0,0.0121574]
[1724794669277,0.001,61176.0,61169.0,0.14256959]
[1724794669515,1.039992,61170.0,61169.0,0.14256959]
[1724794669801,1.1928513,61170.0,61169.0,0.14256959]
[1724794670033,1.5428513,61170.0,61169.0,0.14256959]
[1724794670271,1.5428513,61170.0,61150.0,0.00273]
[1724794670272,0.406,61151.0,61150.0,0.00273]
[1724794670503,0.569548,61144.0,61130.0,0.00087333]
[1724794670747,2.41584728,61144.0,61143.0,0.06197372]
[1724794670985,2.7261523,61144.0,61143.0,0.06197372]
[1724794671227,2.60544728,61144.0,61143.0,0.06197372]
[1724794671464,2.60544728,61144.0,61130.0,0.00087333]
[1724794671465,0.406,61132.0,61130.0,0.00087333]
[1724794671716,1.724022,61123.0,61121.0,0.03]
[1724794671941,1.724022,61123.0,61101.0,0.001]
[1724794671942,0.169609,61121.0,61101.0,0.001]
[1724794672163,1.396981,61102.0,61101.0,0.001]
[1724794672430,0.624263,61101.0,61100.0,0.092172]
[1724794672644,1.1040793,61101.0,61100.0,0.092172]
[1724794673111,1.1040793,61101.0,61090.0,0.00224807]
[1724794673112,0.406,61091.0,61090.0,0.00224807]
[1724794673377,0.4798163,61091.0,61090.0,0.00224807]
[1724794673624,0.4808163,61091.0,61090.0,0.36210188]
[1724794674074,0.4858163,61091.0,61090.0,0.00430944]
[1724794674512,0.406,61086.0,61075.0,0.39858815]
[1724794674727,0.8858163,61086.0,61075.0,0.39858815]
[1724794675455,1.9644193,61086.0,61075.0,0.39858815]
[1724794675687,1.3007163,61086.0,61075.0,0.39858815]
[1724794676402,0.351,61078.0,61077.0,0.23450992]
[1724794676614,0.001,61076.0,61075.0,0.56231815]
[1724794676871,0.001,61076.0,61075.0,0.91157196]
[1724794677090,0.51058032,61076.0,61075.0,0.38798815]
[1724794677335,0.10658226,61076.0,61075.0,0.58056134]
[1724794677588,0.001,61109.0,61096.0,0.4107]
[1724794677802,0.00409165,61107.0,61106.0,0.49095]
[1724794678033,0.85556367,61124.0,61106.0,0.49095]
[1724794678034,0.02566733,61124.0,61123.0,0.490813]
[1724794678247,0.001,61134.0,61133.0,0.490732]
[1724794678466,0.001,61136.0,61135.0,0.81786]
[1724794678707,0.001,61139.0,61123.0,1.011407]
[1724794679164,0.001,61142.0,61141.0,0.163556]
[1724794679166,0.00408947,61148.0,61142.0,0.49066]
[1724794679167,0.001,61143.0,61142.0,0.49066]
[1724794679397,0.001,61143.0,61142.0,0.85051381]
[1724794679858,0.326851,61190.0,61142.0,0.85051381]
[1724794679859,0.001,61151.0,61142.0,0.57295381]
[1724794680094,0.001,61148.0,61147.0,0.8177]
[1724794680368,0.001,61151.0,61150.0,0.654128]
[1724794680606,0.35,61166.0,61150.0,0.654128]
[1724794680607,0.001,61156.0,61150.0,0.123]
[1724794680829,0.001,61156.0,61155.0,0.90537432]
[1724794681050,0.0040884,61165.0,61164.0,0.163494]
[1724794681264,0.02563542,61173.0,61167.0,0.163484]
[1724794681501,0.02563542,61173.0,61164.0,0.41481932]
[1724794681727,0.35,61174.0,61164.0,0.41481932]
[1724794681967,0.02972034,61172.0,61164.0,0.43107722]
[1724794682244,0.02563268,61172.0,61165.0,0.023]
[1724794682457,0.02563268,61172.0,61171.0,0.163476]
[1724794682697,0.02563268,61172.0,61171.0,0.186476]
[1724794682949,0.82989634,61194.0,61181.0,0.41481932]
[1724794683420,0.05,61193.0,61182.0,0.023]
[1724794683638,0.35,61194.0,61182.0,0.023]
[1724794683849,0.35,61194.0,61178.0,0.023]
[1724794684096,0.35,61201.0,61182.0,0.0162579]
[1724794684321,0.35,61201.0,61184.0,0.163439]
[1724794684576,0.35,61201.0,61182.0,0.0162579]
[1724794684577,0.00408628,61200.0,61185.0,0.023]
[1724794684789,0.00408628,61200.0,61187.0,0.41481932]
[1724794684998,0.05,61197.0,61187.0,0.41481932]
[1724794685224,0.35,61193.0,61185.0,0.0162579]
[1724794685465,0.05,61188.0,61185.0,1e-08]
[1724794685683,0.00408686,61187.0,61171.0,0.37320001]
[1724794685897,0.00408686,61187.0,61172.0,0.023]
[1724794686117,0.0266,61186.0,61172.0,0.023]
[1724794686330,0.0266,61186.0,61167.0,0.41481932]
[1724794686331,0.35,61180.0,61167.0,0.41481932]
[1724794686549,0.00408745,61179.0,61167.0,0.41481932]
[1724794686958,0.00408745,61179.0,61167.0,0.45630125]
[1724794687065,0.00408745,61179.0,61167.0,0.41481932]
[1724794687279,0.00408745,61179.0,61155.0,0.1935]
[1724794687280,0.05,61178.0,61160.0,0.32701]
[1724794687507,0.05,61178.0,61165.0,0.16349]
[1724794687508,0.00408771,61177.0,61165.0,0.16349]
[1724794687734,0.0256315,61174.0,61164.0,0.163493]
[1724794687955,0.00408773,61173.0,61159.0,0.327013]
[1724794688200,0.00408773,61173.0,61163.0,0.163497]
[1724794688427,0.00408773,61173.0,61160.0,0.023]
[1724794688644,0.00408773,61173.0,61159.0,0.023]
[1724794688856,0.35408773,61173.0,61156.0,0.1]
[1724794689277,0.4,61166.0,61145.0,0.41481932]
[1724794689485,0.00408864,61165.0,61149.0,0.163533]
[1724794689734,0.00408864,61165.0,61147.0,0.327079]
[1724794689939,0.00408864,61165.0,61145.0,0.41481932]
[1724794690409,0.00408864,61164.0,61146.0,0.00327091]
[1724794690681,0.00408864,61164.0,61145.0,0.41481932]
[1724794690682,0.05,61172.0,61161.0,0.1635]
[1724794690921,0.00408787,61171.0,61156.0,0.327031]
[1724794691125,0.00408787,61171.0,61156.0,0.163515]
[1724794691334,0.00408787,61171.0,61153.0,0.327047]
[1724794691555,0.00408787,61171.0,61158.0,0.16351]
[1724794691776,0.02563471,61168.0,61156.0,0.163515]
[1724794691982,0.00408802,61167.0,61157.0,0.186511]
[1724794692199,0.00408802,61167.0,61158.0,0.16351]
[1724794692428,0.00408802,61167.0,61157.0,0.186513]
[1724794692666,0.00408802,61167.0,61158.0,0.5558]
[1724794692918,0.02563471,61168.0,61159.0,0.123]
[1724794693130,0.05408785,61166.0,61158.0,0.5558]
[1724794693562,0.05408785,61166.0,61149.0,0.1]
[1724794693773,0.05,61162.0,61149.0,0.1]
[1724794693981,0.00408859,61161.0,61146.0,0.1]
[1724794694498,0.00408859,61161.0,61145.0,0.41481932]
[1724794694499,0.00408859,61161.0,61159.0,0.000823]
[1724794694688,0.05,61164.0,61145.0,0.41481932]
[1724794694920,0.02563876,61158.0,61145.0,0.41481932]
[1724794695354,0.02563876,61158.0,61145.0,0.57836332]
[1724794695596,0.02563876,61158.0,61145.0,0.41481932]
[1724794696247,0.3977,61167.0,61145.0,0.41481932]
[1724794696458,0.02563948,61155.0,61146.0,0.1]
[1724794696718,0.05,61142.0,61125.0,0.1807]
[1724794696922,0.05,61142.0,61126.0,0.47989634]
[1724794697121,0.05,61142.0,61121.0,0.327215]
[1724794697122,0.0766,61142.0,61121.0,0.163608]
[1724794697347,0.0766,61142.0,61114.0,0.163627]
[1724794697567,0.0766,61142.0,61116.0,0.163622]
[1724794697796,0.0766,61142.0,61113.0,0.41481932]
[1724794698006,0.0766,61142.0,61116.0,0.327243]
[1724794698210,0.0766,61142.0,61118.0,0.163617]
[1724794698474,0.0766,61142.0,61118.0,0.163616]
[1724794698680,0.05,61125.0,61101.0,0.3814]
[1724794698900,0.355,61120.0,61112.0,0.47989634]
[1724794699123,0.927412,61120.0,61097.0,0.00823]
[1724794699327,0.7638,61120.0,61097.0,0.00823]
[1724794699965,0.7638,61120.0,61097.0,0.171903]
[1724794700178,0.7588,61120.0,61097.0,0.00823]
[1724794700391,0.7846,61120.0,61119.0,1e-08]
[1724794700610,0.953212,61120.0,61119.0,1e-08]
[1724794700866,1.280437,61120.0,61119.0,1e-08]
[1724794701089,1.280437,61120.0,61097.0,0.00823]
[1724794701090,0.35,61100.0,61097.0,0.00823]
[1724794701302,0.35,61100.0,61098.0,0.47989634]
[1724794701519,0.49084,61099.0,61097.0,0.00823]
[1724794701731,0.544771,61098.0,61097.0,0.00823]
[1724794701963,1.035611,61098.0,61097.0,0.00823]
[1724794702269,1.061411,61098.0,61097.0,0.00823]
[1724794702480,1.061411,61098.0,61075.0,0.38798815]
[1724794702481,1.550924,61086.0,61075.0,0.38798815]
[1724794702702,2.041764,61086.0,61075.0,0.38798815]
[1724794702924,1.38695,61086.0,61075.0,0.38798815]
[1724794703362,1.78792324,61086.0,61075.0,0.38798815]
[1724794703791,1.46051624,61086.0,61075.0,0.38798815]
[1724794704215,1.78792324,61086.0,61075.0,0.38798815]
[1724794704709,1.24181324,61086.0,61075.0,0.38798815]
[1724794704960,0.86651324,61086.0,61075.0,0.36193049]
[1724794705414,0.86651324,61086.0,61085.0,0.00200655]
[1724794705875,0.91651324,61086.0,61085.0,0.00200655]
[1724794706367,0.92151324,61086.0,61085.0,0.00200655]
[1724794706576,1.41262324,61086.0,61085.0,0.00200655]
[1724794706786,0.35,61076.0,61075.0,0.36193049]
[1724794707032,0.84084,61076.0,61075.0,0.36193049]
[1724794707457,1.00457,61076.0,61075.0,0.36193049]
[1724794707686,0.84084,61076.0,61075.0,0.36193049]
[1724794707901,1.66449,61076.0,61075.0,0.36193049]
[1724794708371,1.69029,61076.0,61075.0,0.27851682]
[1724794708655,0.919811,61061.0,61060.0,4e-05]
[1724794708865,1.40475383,61061.0,61060.0,4e-05]
[1724794709772,1.42435383,61061.0,61060.0,4e-05]
[1724794710077,1.09681283,61061.0,61060.0,4e-05]
[1724794710292,0.84084,61061.0,61060.0,4e-05]
[1724794710512,0.987151,61061.0,61060.0,4e-05]
[1724794710727,0.6186,61044.0,61024.0,0.41481932]
[1724794710945,1.10944,61044.0,61030.0,0.47993634]
[1724794711170,1.10944,61044.0,61030.0,4e-05]
[1724794711823,0.89084,61044.0,61030.0,4e-05]
[1724794712058,0.51652624,61044.0,61038.0,0.327659]
[1724794712292,0.51652624,61044.0,61043.0,0.16465133]
[1724794712509,0.51652624,61044.0,61043.0,0.00083333]
[1724794712749,0.51652624,61044.0,61043.0,0.16465133]
[1724794712983,0.51652624,61044.0,61043.0,0.02383333]
[1724794713213,0.51652624,61044.0,61043.0,0.51528833]
[1724794713442,0.51652624,61044.0,61043.0,0.18765133]
[1724794713678,0.51652624,61044.0,61043.0,0.02383333]
[1724794713917,0.51652624,61044.0,61043.0,0.00083333]
[1724794714137,0.51652624,61044.0,61043.0,0.02383333]
[1724794715093,0.51652624,61044.0,61043.0,1.40572533]
[1724794715586,0.29252624,61044.0,61043.0,1.50572533]
[1724794715793,0.327353,61097.0,61043.0,1.50572533]
[1724794715794,0.35,61079.0,61077.0,0.163727]
[1724794716027,0.35,61079.0,61062.0,0.41481932]
[1724794716242,0.05,61092.0,61072.0,0.41481932]
[1724794716243,0.49124,61077.0,61072.0,0.41481932]
[1724794716477,0.49124,61077.0,61076.0,0.81865]
[1724794716734,0.49124,61077.0,61076.0,1.14611]
[1724794716963,0.49124,61077.0,61076.0,1.67047]
[1724794717200,0.46724,61077.0,61076.0,1.83043545]
[1724794717414,0.46724,61077.0,61076.0,1.67047]
[1724794717906,0.05064,61077.0,61076.0,1.67047]
[1724794718116,0.05064,61077.0,61076.0,2.16087]
[1724794718368,0.03554,61077.0,61076.0,1.83341]
[1724794719014,0.01154,61077.0,61076.0,1.83841]
[1724794719269,0.47989634,61112.0,61093.0,0.5873]
[1724794719497,0.47989634,61112.0,61094.0,0.1]
[1724794719739,0.00907501,61123.0,61094.0,0.1]
[1724794719740,0.47989634,61111.0,61094.0,0.02362932]
[1724794719970,0.47989634,61111.0,61108.0,0.163642]
[1724794719971,0.49097,61111.0,61108.0,0.163642]
[1724794720197,0.49097,61111.0,61093.0,0.5873]
[1724794720198,0.49097,61111.0,61099.0,0.327337]
[1724794720415,0.45547,61111.0,61099.0,0.327333]
[1724794720629,0.42417,61111.0,61100.0,0.163664]
[1724794720845,0.42417,61111.0,61093.0,0.5873]
[1724794721091,0.42417,61111.0,61100.0,0.163665]
[1724794721304,0.42417,61111.0,61102.0,0.163658]
[1724794721572,0.42417,61111.0,61103.0,0.186657]
[1724794722010,0.42417,61111.0,61103.0,0.023]
[1724794722224,0.42417,61111.0,61101.0,0.28666]
[1724794722455,0.42417,61111.0,61101.0,0.1]
[1724794722674,0.4,61109.0,61093.0,0.5873]
[1724794722888,0.38313185,61108.0,61093.0,0.3904]
[1724794723321,0.54677685,61108.0,61093.0,0.3904]
[1724794723543,0.38313185,61108.0,61093.0,0.3904]
[1724794723754,0.37503185,61108.0,61093.0,0.3904]
[1724794723972,0.37503185,61108.0,61094.0,0.1]
[1724794724187,0.05,61107.0,61094.0,0.1]
[1724794724409,0.37503185,61106.0,61094.0,0.1]
[1724794724642,0.37503185,61106.0,61095.0,0.41481932]
[1724794724643,0.2362127,61106.0,61095.0,0.41481932]
[1724794724858,0.2122127,61106.0,61105.0,0.490957]
[1724794725084,0.2122127,61106.0,61105.0,1.501962]
[1724794725369,0.413,61097.0,61071.0,0.03273]
[1724794725634,0.35,61070.0,61050.0,0.184525]
[1724794725842,0.2122127,61069.0,61051.0,0.163795]
[1724794726051,0.2122127,61069.0,61050.0,0.184525]
[1724794726923,0.2122127,61069.0,61054.0,0.163787]
[1724794727151,0.2122127,61069.0,61050.0,0.184525]
[1724794727805,0.2122127,61069.0,61054.0,0.163788]
[1724794728268,0.2122127,61069.0,61050.0,0.184525]
[1724794728482,0.2122127,61069.0,61054.0,0.163788]
[1724794728698,0.2122127,61069.0,61057.0,0.163779]
[1724794728915,0.2122127,61069.0,61058.0,0.023]
[1724794729157,0.05622127,61068.0,61056.0,0.186783]
[1724794729407,0.2122127,61067.0,61057.0,0.1]
[1724794729642,0.163762,61065.0,61051.0,0.1]
[1724794729875,0.2072127,61064.0,61050.0,0.000825]
[1724794730287,0.2072127,61064.0,61052.0,0.163793]
[1724794730519,0.2072127,61064.0,61058.0,0.163777]
[1724794730725,0.2072127,61064.0,61053.0,0.1]
[1724794730932,0.2072127,61064.0,61054.0,0.023]
[1724794731358,0.0256769,61062.0,61054.0,0.023]
[1724794731587,0.0256769,61062.0,61056.0,0.327567]
[1724794731823,0.0256769,61062.0,61061.0,0.907811]
[1724794732055,0.5169869,61062.0,61061.0,1.556952]
[1724794732273,0.49131,61062.0,61061.0,1.533952]
[1724794732706,0.49131,61062.0,61061.0,1.206411]
[1724794732916,0.49131,61062.0,61061.0,1.533952]
[1724794733200,0.49131,61062.0,61061.0,0.1]
[1724794733449,0.49131,61062.0,61050.0,0.000825]
[1724794735500,0.35,61058.0,61050.0,1e-08]
[1724794735744,0.327569,61056.0,61050.0,1e-08]
[1724794735990,0.87581,61057.0,61050.0,1e-08]
[1724794735991,0.513797,61051.0,61050.0,1e-08]
[1724794736225,0.84131,61051.0,61040.0,4e-05]
[1724794736952,0.163803,61049.0,61040.0,4e-05]
[1724794737213,0.163805,61048.0,61040.0,4e-05]
[1724794737452,0.163805,61048.0,61039.0,0.05146785]
[1724794737453,1.93094301,61040.0,61039.0,0.05146785]
[1724794737669,2.42725301,61040.0,61039.0,0.05146785]
[1724794737922,2.42725301,61040.0,61020.0,4e-05]
[1724794737923,0.163878,61021.0,61020.0,4e-05]
[1724794738162,0.987944,61021.0,61020.0,4e-05]
[1724794738374,0.49131,61021.0,61020.0,4e-05]
[1724794738817,1.388944,61021.0,61020.0,4e-05]
[1724794739028,1.241388,61021.0,61020.0,4e-05]
[1724794739247,0.40205801,61013.0,61012.0,6.777e-05]
[1724794739513,1.71286301,61013.0,61012.0,6.777e-05]
[1724794739770,1.71286301,61013.0,61000.0,1.12539256]
[1724794739771,1.06598901,61001.0,61000.0,1.12539256]
[1724794740027,0.824737,60995.0,60994.0,2.30350756]
[1724794740279,1.971837,60995.0,60994.0,2.30350756]
[1724794740637,1.971837,60995.0,60931.0,0.0121574]
[1724794740638,0.73009801,60968.0,60931.0,0.0121574]
[1724794740792,0.89411801,60968.0,60937.0,0.47989634]
[1724794741023,0.89411801,60968.0,60903.0,0.47989634]
[1724794741024,0.005,60920.0,60919.0,0.47989634]
[1724794741296,0.005,60902.0,60900.0,0.162212]
[1724794741514,1.002594,60902.0,60900.0,0.162212]
[1724794741749,3.1206619,60902.0,60900.0,0.162212]
[1724794741974,0.169233,60889.0,60874.0,0.00030589]
[1724794742228,0.56633901,60871.0,60860.0,5e-05]
[1724794742448,0.56633901,60871.0,60850.0,0.1483788]
[1724794742449,0.35,60851.0,60850.0,0.1483788]
[1724794742681,0.49131,60851.0,60850.0,0.1483788]
[1724794742936,0.811681,60851.0,60850.0,0.1477788]
[1724794743205,0.48301,60851.0,60850.0,0.1477788]
[1724794743426,0.48301,60851.0,60838.0,0.01]
[1724794743427,0.35,60841.0,60838.0,0.01]
[1724794743659,0.47989634,60846.0,60838.0,0.01]
[1724794743882,0.80531,60841.0,60838.0,0.00505]
[1724794744129,0.80531,60841.0,60838.0,5e-05]
[1724794744130,0.005,60839.0,60838.0,5e-05]
[1724794744354,2.066724,60839.0,60838.0,5e-05]
[1724794744608,0.355,60827.0,60826.0,0.01]
[1724794744839,0.005,60814.0,60810.0,5e-05]
[1724794745059,1.46870963,60813.0,60810.0,5e-05]
[1724794745284,0.79646036,60840.0,60812.0,0.41488772]
[1724794745517,0.35,60858.0,60839.0,0.41481932]
[1724794745734,0.97989634,60881.0,60851.0,0.493006]
[1724794745735,0.02577625,60852.0,60851.0,0.493006]
[1724794745987,0.02577625,60852.0,60851.0,0.41481932]
[1724794745988,0.328708,60852.0,60851.0,0.41481932]
[1724794746209,0.328708,60852.0,60813.0,0.22977184]
[1724794746422,0.35,60839.0,60829.0,0.47989634]
[1724794746689,0.35,60836.0,60826.0,0.00082]
[1724794746907,0.35,60843.0,60835.0,0.10451132]
[1724794747155,0.04705801,60869.0,60835.0,0.10451132]
[1724794747393,0.04705801,60869.0,60841.0,0.164362]
[1724794747394,0.4931,60842.0,60841.0,0.164362]
[1724794747603,0.4931,60842.0,60841.0,0.679187]
[1724794747812,0.4931,60842.0,60841.0,1.007912]
[1724794748027,0.5,60891.0,60841.0,1.007912]
[1724794748028,0.35,60887.0,60880.0,0.328515]
[1724794748305,0.5,60910.0,60880.0,0.328515]
[1724794748306,0.82989634,60901.0,60880.0,0.492772]
[1724794748491,0.49277,60881.0,60880.0,0.821287]
[1724794748714,0.35,60912.0,60880.0,0.84547412]
[1724794748922,0.35,60919.0,60902.0,0.49395912]
[1724794749143,0.328373,60917.0,60916.0,0.32832]
[1724794749371,0.328373,60917.0,60916.0,0.49248]
[1724794749617,0.328373,60917.0,60916.0,1.24912]
[1724794750080,0.47989634,60975.0,60916.0,0.4764]
[1724794750351,0.47989634,60942.0,60933.0,0.164113]
[1724794750610,0.35,60936.0,60918.0,0.47989634]
[1724794750854,0.49224,60935.0,60919.0,0.123]
[1724794751369,0.49224,60935.0,60931.0,0.49236]
[1724794751370,0.02573002,60932.0,60931.0,0.49236]
[1724794751569,0.51797002,60932.0,60931.0,0.28712]
[1724794751788,0.51797002,60932.0,60931.0,0.9436]
[1724794752005,0.49558862,60932.0,60931.0,0.9436]
[1724794752307,0.10247638,60932.0,60931.0,1.19986]
[1724794752525,0.07847638,60932.0,60931.0,1.09486]
[1724794752779,0.07847638,60932.0,60931.0,0.76662]
[1724794753023,0.07847638,60932.0,60931.0,1.09486]
[1724794753261,0.07847638,60932.0,60931.0,0.76662]
[1724794753539,0.07847638,60932.0,60931.0,1.09486]
[1724794754214,0.07847638,60932.0,60931.0,1.4231]
[1724794754459,0.07847638,60932.0,60931.0,1.5231]
[1724794754681,0.07847638,60932.0,60931.0,1.85134]
[1724794754904,0.05447638,60932.0,60931.0,1.85134]
[1724794755373,0.47989634,60958.0,60953.0,0.6076]
[1724794755600,0.1541,61026.0,60975.0,1.228907]
[1724794755849,0.1541,61026.0,60975.0,0.900748]
[1724794756145,0.1541,61026.0,60976.0,0.491995]
[1724794756389,5e-06,60976.0,60975.0,1.000748]
[1724794756616,5e-06,60976.0,60975.0,1.328751]
[1724794756844,5e-06,60976.0,60975.0,0.672745]
[1724794757092,5e-06,60976.0,60975.0,1.023748]
[1724794757311,5e-06,60976.0,60975.0,1.351751]
[1724794757792,0.1541,61026.0,60976.0,0.685695]
[1724794757793,8.583405,60977.0,60976.0,0.685695]
[1724794758012,8.583405,60977.0,60976.0,0.480693]
[1724794758247,8.583405,60977.0,60976.0,1.136687]
[1724794758484,9.075395,60977.0,60976.0,0.80869]
[1724794758708,8.458795,60977.0,60976.0,1.29665245]
[1724794758986,2.99907274,60977.0,60976.0,1.89234945]
[1724794759207,1.61108003,60977.0,60976.0,1.86245145]
[1724794759456,0.47989634,61027.0,60976.0,1.86245145]
[1724794759457,0.47989634,61027.0,61008.0,0.005]
[1724794759688,0.47989634,61027.0,61021.0,0.49395912]
[1724794759898,0.49166,61026.0,61025.0,0.163867]
[1724794760399,0.49166,61026.0,61022.0,0.1008]
[1724794760642,0.49166,61026.0,61025.0,0.47989634]
[1724794760878,0.49166,61026.0,61025.0,0.1]
[1724794761082,0.49166,61026.0,61025.0,0.123]
[1724794761548,0.49166,61026.0,61025.0,0.1]
[1724794761973,0.49166,61026.0,61020.0,0.163879]
[1724794762201,0.49166,61026.0,61021.0,0.1]
[1724794762414,0.49166,61026.0,61025.0,0.47989634]
[1724794762630,0.49166,61026.0,61025.0,0.925135]
[1724794762863,0.49166,61026.0,61025.0,0.948135]
[1724794763079,0.49166,61026.0,61025.0,1.275869]
[1724794763507,0.46766,61026.0,61025.0,1.275869]
[1724794763801,0.46766,61026.0,61025.0,0.943135]
[1724794764258,0.46766,61026.0,61025.0,1.268035]
[1724794764513,0.46766,61026.0,61025.0,1.923503]
[1724794764734,0.46766,61026.0,61025.0,1.603603]
[1724794764962,0.46766,61026.0,61025.0,1.595769]
[1724794765628,0.46766,61026.0,61025.0,1.275869]
[1724794766103,0.44366,61026.0,61025.0,1.603603]
[1724794766378,0.44366,61026.0,61025.0,1.275869]
[1724794766845,0.44366,61026.0,61025.0,1.595769]
[1724794767294,0.44366,61026.0,61025.0,1.275869]
[1724794767534,0.44366,61026.0,61025.0,1.603603]
[1724794767747,0.44366,61026.0,61025.0,1.275869]
[1724794767969,0.44366,61026.0,61025.0,1.703603]
[1724794768178,0.44366,61026.0,61025.0,1.375869]
[1724794768394,0.05607802,61088.0,61025.0,1.375869]
[1724794768395,0.35,61086.0,61055.0,0.491359]
[1724794768609,0.35,61086.0,61055.0,0.919732]
[1724794768842,0.05607802,61088.0,61055.0,0.919732]
[1724794768843,0.49148,61056.0,61055.0,0.924732]
[1724794769078,0.00902001,61088.0,61076.0,0.49119]
[1724794769303,0.00902001,61088.0,61076.0,0.91945]
[1724794769534,0.492092,61077.0,61076.0,1.25191]
[1724794769785,0.487092,61077.0,61076.0,1.25191]
[1724794770240,0.00902001,61088.0,61076.0,1.25191]
[1724794770241,0.00902001,61088.0,61087.0,0.491101]
[1724794770466,0.00902001,61088.0,61087.0,0.923502]
[1724794770702,0.50012001,61088.0,61087.0,0.923502]
[1724794770933,0.50012001,61088.0,61087.0,1.250903]
[1724794771163,0.5614,61125.0,61107.0,0.163645]
[1724794771455,0.00907501,61139.0,61104.0,0.005]
[1724794771687,0.00907501,61139.0,61118.0,0.163616]
[1724794771688,0.39028,61122.0,61118.0,0.163616]
[1724794771922,0.39028,61122.0,61108.0,0.123]
[1724794771923,0.39028,61122.0,61121.0,0.163609]
[1724794772158,0.00512,61138.0,61121.0,0.1238]
[1724794772159,0.00012,61138.0,61121.0,0.1238]
[1724794772391,0.00012,61138.0,61137.0,0.163567]
[1724794772614,0.49076,61137.0,61133.0,0.327151]
[1724794772852,0.49076,61137.0,61134.0,0.123]
[1724794773096,0.49076,61137.0,61134.0,0.1]
[1724794773329,0.005,61135.0,61112.0,0.47989634]
[1724794773563,0.005,61128.0,61124.0,0.1]
[1724794773800,0.005,61125.0,61124.0,0.1]
[1724794774037,0.005,61112.0,61089.0,0.0008]
[1724794774277,0.005,61097.0,61074.0,0.0008]
[1724794774568,0.005,61097.0,61053.0,0.47989634]
[1724794774569,0.005,61091.0,61067.0,0.327508]
[1724794774804,0.005,61091.0,61053.0,0.47989634]
[1724794774805,0.005,61073.0,61054.0,0.0008]
[1724794775051,0.49076,61073.0,61059.0,0.327548]
[1724794775312,0.49076,61073.0,61055.0,0.327571]
[1724794775576,0.005,61070.0,61056.0,0.47989634]
[1724794775808,0.49076,61069.0,61053.0,0.00818]
[1724794776890,0.005,61068.0,61055.0,0.163784]
[1724794777148,0.48576,61067.0,61053.0,0.00818]
[1724794777625,0.48576,61067.0,61054.0,0.163788]
[1724794777893,0.48576,61067.0,61066.0,0.491271]
[1724794778110,0.48576,61067.0,61066.0,0.818785]
[1724794778563,0.48576,61067.0,61066.0,1.146299]
[1724794778809,0.48576,61067.0,61066.0,1.474613]
[1724794779034,0.48576,61067.0,61066.0,1.597613]
[1724794779824,0.47676,61067.0,61066.0,1.270099]
[1724794780070,0.47676,61067.0,61066.0,0.186757]
[1724794780293,0.47676,61067.0,61062.0,0.163766]